bitfinex-derivatives/quotes_ETHF0:USTF0_20250518
["timestamp","ask_amount","ask_price","bid_price","bid_amount"]
[1747527340740,0.80559,2481.6,2481.5,8.002]
[1747527340942,0.80559,2481.6,2481.5,12.34437157]
[1747527341143,0.80559,2481.6,2481.5,16.35780157]
[1747527341843,1.2508,2481.7,2481.6,0.80559]
[1747527342441,2.05639,2481.7,2481.5,16.35777157]
[1747527342741,2.05639,2481.7,2481.6,0.80559]
[1747527343348,0.80559,2481.6,2481.5,16.35778157]
[1747527343649,2.05638,2481.7,2481.6,0.80559]
[1747527343948,2.05638,2481.7,2481.6,5.36640724]
[1747527344843,2.36845703,2482.0,2481.6,4.56081724]
[1747527345051,0.80554,2481.8,2481.7,0.80554]
[1747527345351,2.06512,2481.9,2481.6,4.56081724]
[1747527345744,1.2596,2481.9,2481.8,0.80553]
[1747527345943,1.00965703,2482.0,2481.9,0.8055]
[1747527346143,1.81511703,2482.0,2481.9,0.8055]
[1747527346343,1.00965703,2482.0,2481.9,5.00172548]
[1747527346545,1.81511703,2482.0,2481.9,5.00172548]
[1747527346751,1.00965703,2482.0,2481.9,5.00172548]
[1747527347551,1.00965703,2482.0,2481.9,13.00172548]
[1747527347944,1.81511703,2482.0,2481.9,12.19622548]
[1747527348145,1.81511703,2482.0,2481.9,13.00172548]
[1747527349348,1.00965703,2482.0,2481.9,13.00172548]
[1747527350551,1.00965703,2482.0,2481.9,14.30802548]
[1747527350755,0.80541,2482.2,2482.1,0.80542]
[1747527351049,0.80541,2482.2,2482.1,8.004]
[1747527351250,0.80541,2482.2,2482.1,12.67274542]
[1747527351448,0.80541,2482.2,2482.1,15.41227542]
[1747527352053,2.18209,2482.3,2482.2,0.8054]
[1747527352247,2.18207,2482.3,2482.2,2.1117]
[1747527352447,2.18207,2482.3,2482.2,6.56137888]
[1747527352646,1.3767,2482.3,2482.2,6.56137888]
[1747527352850,0.67110017,2482.4,2482.3,0.80537]
[1747527353154,0.67110017,2482.4,2482.3,7.25104888]
[1747527353954,1.47643017,2482.4,2482.3,7.25104888]
[1747527354454,2.80183017,2482.4,2482.3,6.44567888]
[1747527355156,2.13073,2482.4,2482.3,6.44567888]
[1747527355350,2.13073,2482.4,2482.3,4.44967888]
[1747527355651,0.8054,2482.2,2482.1,12.63902]
[1747527355956,0.8054,2482.2,2482.1,25.25248605]
[1747527356957,0.8054,2482.2,2482.1,4.61546605]
[1747527357252,2.154,2482.2,2482.1,7.998]
[1747527357652,2.154,2482.2,2482.1,12.50229094]
[1747527360850,2.154,2482.2,2482.1,4.50429094]
[1747527361049,0.8055,2481.9,2481.8,11.2058]
[1747527361254,0.80559,2481.6,2481.5,7.997]
[1747527361657,1.8818,2481.8,2481.7,0.80556]
[1747527361858,0.80556,2481.7,2481.6,3.45948]
[1747527362056,2.13926,2481.7,2481.6,1.48618]
[1747527362244,2.13926,2481.7,2481.6,4.23020222]
[1747527362451,0.80563,2481.5,2481.4,1.19455234]
[1747527362649,0.80571,2481.3,2481.1,3.2078]
[1747527362854,1.3337,2481.4,2481.0,1.19455234]
[1747527363157,0.80576,2481.1,2481.0,1.19455234]
[1747527363554,1.46506,2481.1,2481.0,1.19455234]
[1747527364055,6.46506,2481.1,2481.0,1.19455234]
[1747527364856,14.46106,2481.1,2481.0,1.19455234]
[1747527365048,1.46506,2481.1,2481.0,1.19455234]
[1747527365249,2.84216,2481.1,2481.0,1.19455234]
[1747527365660,2.84216,2481.1,2480.8,1.59273646]
[1747527365661,0.80585,2480.8,2480.7,0.80589]
[1747527365855,2.0364,2481.1,2480.9,0.80581]
[1747527366163,0.80579,2481.0,2480.9,4.26898011]
[1747527366456,2.18289,2481.0,2480.9,4.26898011]
[1747527367756,1.3771,2481.0,2480.9,5.07480011]
[1747527368161,2.18289,2481.0,2480.9,4.26898011]
[1747527372260,0.80582,2480.9,2480.8,7.999]
[1747527372460,2.73102,2480.9,2480.8,7.999]
[1747527372759,5.22219,2481.2,2480.8,7.999]
[1747527372760,1.47677017,2481.4,2480.8,17.21895903]
[1747527372963,1.96030017,2481.4,2481.1,3.2078]
[1747527373261,0.67110017,2481.4,2481.3,0.80569]
[1747527373662,0.67110017,2481.4,2481.3,6.53688106]
[1747527374361,0.67110017,2481.4,2481.3,11.53688106]
[1747527375161,0.67110017,2481.4,2481.3,14.59488106]
[1747527376058,0.67110017,2481.5,2481.4,0.80566]
[1747527376363,0.67110017,2481.5,2481.4,18.50691903]
[1747527376558,1.00965703,2481.7,2481.6,0.80559]
[1747527376863,1.00965703,2481.7,2481.6,13.27674903]
[1747527377067,1.00965703,2481.7,2481.6,18.27674903]
[1747527378064,1.66017152,2482.2,2481.6,17.47115903]
[1747527378262,1.66017152,2482.2,2482.1,0.80543]
[1747527378564,1.66017152,2482.2,2482.1,21.18172389]
[1747527378761,1.66017152,2482.2,2482.1,23.08922389]
[1747527380260,2.46557152,2482.2,2482.1,23.08922389]
[1747527380470,2.46557152,2482.2,2482.1,12.37929389]
[1747527380662,0.8054,2482.2,2482.1,20.37429389]
[1747527381860,1.3577,2482.5,2482.1,4.38029389]
[1747527382066,1.3577,2482.5,2482.1,12.37929389]
[1747527382261,0.8054,2482.2,2482.1,12.37929389]
[1747527382860,0.80546,2482.0,2481.9,7.994]
[1747527383655,0.80553,2481.8,2481.7,9.49086]
[1747527383866,0.80552,2481.9,2481.8,0.80553]
[1747527384065,2.14302,2481.9,2481.8,0.80553]
[1747527384266,2.14302,2481.9,2481.8,2.12363]
[1747527384470,1.3375,2481.9,2481.8,2.12363]
[1747527385064,0.80539,2482.3,2482.1,0.80542]
[1747527385266,0.80539,2482.3,2482.2,1.3181]
[1747527385666,0.8054,2482.2,2482.1,3.2078]
[1747527385862,0.80543,2482.1,2482.0,9.2946]
[1747527386068,2.14163,2482.1,2482.0,9.2946]
[1747527386266,2.14163,2482.1,2482.0,13.92479361]
[1747527386969,2.14163,2482.1,2482.0,7.994]
[1747527387365,1.3362,2482.1,2482.0,13.20064208]
[1747527387565,3.2078,2482.5,2482.0,12.39518208]
[1747527387771,2.14156,2482.4,2482.1,5.1592]
[1747527388072,0.80537,2482.3,2482.2,2.10597]
[1747527388370,2.14156,2482.4,2482.3,0.80537]
[1747527388571,0.80537,2482.3,2482.2,2.10599]
[1747527388770,0.80537,2482.3,2482.2,1.3006]
[1747527389071,0.80537,2482.3,2482.2,6.39962055]
[1747527389272,0.80537,2482.3,2482.2,5.59422055]
[1747527389871,0.80537,2482.3,2482.2,4.29362055]
[1747527390364,0.8054,2482.2,2482.1,3.8586]
[1747527391167,0.8054,2482.2,2482.1,4.66403]
[1747527391468,0.8054,2482.2,2482.1,3.8586]
[1747527393173,0.8054,2482.2,2482.1,3.2078]
[1747527393365,2.01351,2482.2,2481.9,7.994]
[1747527393561,0.80546,2482.0,2481.9,7.994]
[1747527393967,2.11966,2482.0,2481.9,7.994]
[1747527394267,2.11966,2482.0,2481.9,8.7995]
[1747527394771,2.11966,2482.0,2481.9,9.3091]
[1747527394975,2.11966,2482.0,2481.9,10.1146]
[1747527395467,2.11966,2482.0,2481.9,9.3091]
[1747527395868,2.11966,2482.0,2481.9,10.1146]
[1747527396062,2.11966,2482.0,2481.9,9.3091]
[1747527397576,2.11966,2482.0,2481.9,10.1146]
[1747527397781,2.11966,2482.0,2481.9,9.3091]
[1747527397979,2.11966,2482.0,2481.9,7.994]
[1747527400572,0.8055,2481.9,2481.8,4.67693]
[1747527400779,2.0777,2481.9,2481.8,19.8574]
[1747527400973,2.0777,2481.9,2481.8,24.35724519]
[1747527401171,2.0777,2481.9,2481.8,7.70764519]
[1747527401374,2.0777,2481.9,2481.8,3.2078]
[1747527403986,0.80556,2481.7,2481.6,7.994]
[1747527404179,0.80563,2481.5,2481.4,3.2078]
[1747527404884,2.16103,2481.5,2481.4,3.2078]
[1747527405271,0.80572,2481.2,2481.1,9.18855234]
[1747527405477,0.80572,2481.2,2481.1,1.19455234]
[1747527406281,0.80572,2481.2,2481.1,5.7435105]
[1747527407181,0.80572,2481.2,2481.1,6.5492705]
[1747527407381,0.80572,2481.2,2481.1,5.7435105]
[1747527408085,0.80572,2481.2,2481.1,1.19455234]
[1747527409884,0.80579,2481.0,2480.9,13.3294]
[1747527410072,0.80579,2481.0,2480.9,12.5236]
[1747527410277,0.80579,2481.0,2480.9,17.02125983]
[1747527411678,2.08539,2481.0,2480.9,17.02125983]
[1747527411880,0.6936,2481.2,2480.9,17.02125983]
[1747527412086,0.80579,2481.0,2480.9,17.82705983]
[1747527412287,0.80579,2481.0,2480.9,17.82707983]
[1747527416586,1.2796,2481.3,2480.9,17.02125983]
[1747527417092,0.80579,2481.1,2481.0,0.80578]
[1747527417292,0.80579,2481.1,2481.0,2.12038]
[1747527417488,6.41679011,2481.9,2481.1,4.20473505]
[1747527417693,0.80566,2481.4,2481.3,4.01347]
[1747527417889,1.3827,2481.7,2481.5,0.8056]
[1747527418095,1.3827,2481.7,2481.4,4.34609258]
[1747527418295,2.18826,2481.7,2481.6,4.34609258]
[1747527418493,2.18826,2481.7,2481.6,5.15168258]
[1747527418694,2.18826,2481.7,2481.6,5.79768258]
[1747527418889,0.80553,2481.8,2481.6,12.98409258]
[1747527419097,7.79949011,2481.9,2481.7,1.3146]
[1747527419294,1.264,2481.8,2481.7,1.3146]
[1747527419594,2.06953,2481.8,2481.7,5.94754405]
[1747527420195,2.06953,2481.8,2481.7,4.63294405]
[1747527420393,0.80563,2481.5,2481.4,1.3178]
[1747527420588,3.27787,2481.8,2481.1,15.985]
[1747527420789,0.80572,2481.2,2481.1,15.985]
[1747527420990,0.80572,2481.2,2481.1,20.1823781]
[1747527421395,0.80572,2481.2,2481.1,15.985]
[1747527421598,0.80576,2481.1,2481.0,4.40235234]
[1747527421791,2.06976,2481.1,2481.0,4.40235234]
[1747527422596,2.06976,2481.1,2481.0,1.19455234]
[1747527422787,7.06976,2481.1,2481.0,1.19455234]
[1747527423803,7.06976,2481.1,2479.9,4.80053646]
[1747527423804,0.80608,2480.1,2479.9,4.80053646]
[1747527423990,0.80611,2480.0,2479.9,1.59273646]
[1747527424190,1.3771,2480.0,2479.9,1.59273646]
[1747527424492,0.64,2480.2,2479.9,1.59273646]
[1747527424696,3.2078,2480.7,2480.1,3.2078]
[1747527425001,0.80587,2480.8,2480.4,3.2078]
[1747527425297,0.80587,2480.8,2480.6,0.80591]
[1747527425589,2.15557,2480.8,2480.6,0.80591]
[1747527425794,0.80589,2480.7,2480.5,7.20420841]
[1747527426093,0.80592,2480.6,2480.5,6.39827841]
[1747527426695,2.1556,2480.7,2480.5,7.20422841]
[1747527426997,1.3497,2480.7,2480.6,0.80592]
[1747527427197,1.3081,2480.9,2480.8,0.80585]
[1747527427397,3.20899011,2481.4,2480.8,3.2078]
[1747527427596,0.80578,2481.1,2480.9,1.9646]
[1747527427797,0.80578,2481.1,2480.9,2.7704]
[1747527427999,1.9956,2481.3,2480.9,1.9646]
[1747527428695,0.80579,2481.0,2480.9,1.9646]
[1747527428890,0.80574,2481.2,2480.9,1.9646]
[1747527429094,1.3574,2481.2,2480.9,1.9646]
[1747527429397,1.3574,2481.2,2480.7,0.80589]
[1747527429697,0.80584,2480.9,2480.7,0.80589]
[1747527429895,0.80584,2480.9,2480.8,1.2742]
[1747527431102,0.80589,2480.7,2480.6,0.6763]
[1747527431604,0.80589,2480.7,2480.6,1.48222]
[1747527431802,0.80588,2480.8,2480.6,1.48222]
[1747527432000,1.46847,2481.1,2480.9,0.80582]
[1747527432195,1.46847,2481.1,2481.0,2.0087]
[1747527433297,0.80583,2480.9,2480.7,16.79187]
[1747527433597,0.80583,2480.9,2480.8,6.53145068]
[1747527434204,1.3698,2481.0,2480.5,3.2078]
[1747527434404,0.80589,2480.7,2480.5,19.1948]
[1747527434603,0.80589,2480.7,2480.6,1.315]
[1747527434792,2.05549,2480.7,2480.6,1.315]
[1747527435506,2.0555,2480.7,2480.5,20.00075]
[1747527435811,1.2496,2480.7,2480.6,0.80592]
[1747527436107,2.05549,2480.7,2480.6,0.80592]
[1747527436605,0.80592,2480.6,2480.5,7.994]
[1747527436904,0.80592,2480.6,2480.1,3.2078]
[1747527436905,0.80605,2480.2,2480.1,3.2078]
[1747527438509,5.80605,2480.2,2480.1,3.2078]
[1747527438812,5.0,2480.2,2479.3,0.6636]
[1747527439111,0.80628,2479.5,2479.3,0.6636]
[1747527439801,0.80633,2479.4,2479.2,1.59273646]
[1747527440001,1.2851,2479.4,2479.3,0.80634]
[1747527441312,2.09143,2479.4,2479.2,2.07295]
[1747527441704,0.80634,2479.3,2479.2,1.2666]
[1747527441911,0.80637,2479.2,2479.0,0.80642]
[1747527442103,1.2677,2479.1,2479.0,0.80642]
[1747527442304,1.2677,2479.1,2478.8,9.9724]
[1747527442504,2.07413,2479.1,2479.0,0.80644]
[1747527442707,2.07413,2479.1,2478.9,0.80646]
[1747527443010,0.80644,2479.0,2478.8,17.9824]
[1747527443205,1.2677,2479.0,2478.9,0.80647]
[1747527443407,0.6546,2479.2,2479.1,0.80641]
[1747527443607,2.07405,2479.3,2478.9,4.60356535]
[1747527443808,2.07405,2479.3,2479.1,0.80638]
[1747527444314,1.2677,2479.3,2478.8,16.6529]
[1747527444514,0.80642,2479.1,2478.8,16.6529]
[1747527444812,0.8064,2479.2,2479.0,0.80643]
[1747527445008,0.8064,2479.2,2479.0,2.18123]
[1747527445604,1.2897,2479.1,2479.0,2.18123]
[1747527445814,2.09611,2479.1,2479.0,2.18123]
[1747527446410,2.09611,2479.1,2479.0,1.3748]
[1747527446613,0.80644,2479.0,2478.9,0.80645]
[1747527446814,2.15654,2479.0,2478.9,0.80645]
[1747527447208,1.3501,2479.0,2478.9,0.80645]
[1747527447404,2.15654,2479.0,2478.9,1.3674]
[1747527447714,1.3501,2479.0,2478.9,0.80647]
[1747527447913,2.15654,2479.0,2478.9,1.3674]
[1747527448115,2.15654,2479.0,2478.9,2.17387]
[1747527448416,1.3501,2479.0,2478.9,2.17387]
[1747527448803,0.80636,2479.3,2479.2,0.80637]
[1747527449008,0.80638,2479.2,2479.1,0.80639]
[1747527449217,1.3501,2479.3,2478.9,1.3674]
[1747527449419,1.3501,2479.1,2479.0,0.80641]
[1747527449714,0.80644,2479.0,2478.9,2.17385]
[1747527449918,0.80647,2478.9,2478.8,0.6469]
[1747527450416,0.8065,2478.8,2478.7,3.2078]
[1747527450718,0.80654,2478.7,2478.6,2.18787]
[1747527450920,1.3193,2478.9,2478.6,1.3813]
[1747527451212,0.80657,2478.6,2478.5,8.81959]
[1747527451413,3.2078,2478.8,2478.3,0.6411]
[1747527451607,0.80663,2478.5,2478.3,1.44775]
[1747527451807,1.3193,2478.7,2478.4,0.80662]
[1747527452008,0.80657,2478.6,2478.4,0.80662]
[1747527452207,1.3193,2478.7,2478.4,1.3813]
[1747527452415,4.01432,2478.8,2478.7,0.80654]
[1747527452607,3.2078,2478.8,2478.7,0.80654]
[1747527453816,3.84,2479.3,2478.7,4.46250638]
[1747527454012,6.02644,2479.3,2479.2,0.80637]
[1747527454214,6.02644,2479.3,2479.1,0.80638]
[1747527454415,6.02644,2479.3,2479.2,1.2507]
[1747527456309,5.2201,2479.3,2479.2,2.05707]
[1747527456614,4.5879,2479.3,2479.2,2.05707]
[1747527456815,5.39424,2479.3,2479.2,2.05707]
[1747527457823,2.18644,2479.3,2479.2,2.05707]
[1747527458622,2.18644,2479.3,2479.2,1.2507]
[1747527459513,2.18644,2479.3,2479.2,2.05707]
[1747527459713,1.3801,2479.3,2479.2,2.05707]
[1747527460021,3.8366,2479.6,2479.2,1.2507]
[1747527460221,3.8366,2479.6,2479.4,0.80629]
[1747527460423,0.80628,2479.5,2479.4,0.80629]
[1747527460613,1.2899,2479.5,2479.4,2.06009]
[1747527460920,2.09618,2479.5,2479.4,2.06009]
[1747527461722,2.09618,2479.5,2479.4,1.2538]
[1747527461922,2.09618,2479.5,2479.4,2.06011]
[1747527462220,1.2899,2479.5,2479.4,2.06011]
[1747527462520,2.09618,2479.5,2479.4,2.06011]
[1747527462708,1.2899,2479.5,2479.4,2.06011]
[1747527462914,1.2899,2479.5,2479.3,1.3673]
[1747527463113,0.80631,2479.4,2479.3,0.6791]
[1747527463314,1.2899,2479.5,2479.0,7.998]
[1747527463315,0.80641,2479.1,2479.0,9.45942]
[1747527463619,0.80639,2479.2,2479.1,0.80639]
[1747527463918,0.80639,2479.2,2479.1,2.14789]
[1747527464119,2.12089,2479.2,2479.1,2.14789]
[1747527464723,1.3145,2479.2,2479.1,2.14789]
[1747527465222,0.80633,2479.4,2479.3,0.80634]
[1747527465620,2.1387,2479.5,2479.4,0.80631]
[1747527465832,1.3324,2479.5,2479.4,0.80631]
[1747527466020,2.13868,2479.5,2479.4,0.80631]
[1747527467221,0.80631,2479.4,2479.3,0.6454]
[1747527468130,0.80631,2479.4,2479.3,1.45174]
[1747527468629,1.3324,2479.5,2479.4,0.80631]
[1747527468835,3.8366,2479.6,2479.5,0.80628]
[1747527469026,3.8366,2479.6,2479.4,2.16039]
[1747527469325,0.80628,2479.5,2479.4,2.16039]
[1747527469634,4.64287,2479.6,2479.5,0.80628]
[1747527470331,0.80628,2479.5,2479.4,2.16038]
[1747527470531,2.16408,2479.5,2479.4,2.16038]
[1747527472038,1.3578,2479.5,2479.4,2.16038]
[1747527474238,3.2078,2479.6,2479.5,0.80628]
[1747527474441,3.2078,2479.6,2479.5,2.80648]
[1747527475334,0.80631,2479.5,2479.4,0.80631]
[1747527475536,1.3056,2479.5,2479.4,0.80631]
[1747527475936,1.3056,2479.5,2479.4,2.17111]
[1747527476740,3.2078,2479.6,2479.5,0.80628]
[1747527476941,3.2078,2479.6,2479.5,2.17108]
[1747527477239,1.47964,2479.7,2479.6,0.80624]
[1747527478140,0.6734,2479.7,2479.1,15.995]
[1747527478435,0.8063,2479.5,2479.4,0.80629]
[1747527478647,2.16267,2479.6,2479.5,0.80628]
[1747527479537,4.5642,2479.6,2479.1,8.6524]
[1747527479840,0.80634,2479.4,2479.3,0.80633]
[1747527480041,0.80634,2479.3,2479.2,4.4276008]
[1747527480242,2.70664,2479.3,2479.2,0.80637]
[1747527480739,1.9003,2479.3,2479.2,0.80637]
[1747527480939,1.2496,2479.3,2479.2,0.80637]
[1747527481136,3.2078,2479.6,2479.5,0.80628]
[1747527481945,3.2078,2479.6,2479.5,5.28137449]
[1747527482137,4.01404,2479.6,2479.5,4.47509449]
[1747527482337,0.80628,2479.5,2479.2,1.3311]
[1747527482537,0.80636,2479.3,2479.2,0.80635]
[1747527482745,0.80638,2479.2,2479.1,0.80638]
[1747527482948,1.2496,2479.2,2479.1,0.80638]
[1747527483346,1.2496,2479.2,2479.1,1.92635607]
[1747527484141,2.05597,2479.2,2479.1,1.92635607]
[1747527484341,2.05597,2479.2,2479.1,1.11997607]
[1747527485249,2.05597,2479.2,2479.1,0.80641]
[1747527485747,2.05599,2479.2,2479.1,0.80641]
[1747527485947,1.2496,2479.2,2479.1,0.80641]
[1747527486145,1.2496,2479.2,2479.1,2.18201]
[1747527487949,2.05597,2479.2,2479.1,2.18201]
[1747527488150,0.80641,2479.1,2479.0,4.01422]
[1747527488339,2.18271,2479.1,2479.0,4.01422]
[1747527489151,1.3763,2479.1,2479.0,4.01422]
[1747527489746,1.3102,2479.4,2479.3,0.80634]
[1747527489953,1.9566,2479.4,2479.3,0.80634]
[1747527490451,1.00531805,2479.5,2479.4,0.80631]
[1747527490950,1.81159805,2479.5,2479.4,0.80631]
[1747527491347,0.80631,2479.4,2479.3,1.48573]
[1747527491551,0.80631,2479.4,2479.3,2.77273]
[1747527491750,2.10341,2479.4,2479.3,3.89308818]
[1747527492154,2.10341,2479.4,2479.3,1.12035818]
[1747527493348,0.80641,2479.1,2479.0,3.2078]
[1747527493855,0.80641,2479.1,2479.0,4.01424]
[1747527494356,0.80641,2479.1,2479.0,3.2078]
[1747527494656,2.10851,2479.1,2479.0,3.2078]
[1747527495058,2.10851,2479.1,2479.0,4.01424]
[1747527495356,2.10851,2479.1,2479.0,5.13485185]
[1747527497055,2.10851,2479.1,2479.0,4.01424]
[1747527497259,2.10851,2479.1,2479.0,3.2078]
[1747527497851,0.8065,2478.9,2478.7,19.19099757]
[1747527498053,0.80645,2479.0,2478.9,0.80644]
[1747527498251,2.10852,2479.1,2479.0,0.80644]
[1747527500259,1.3021,2479.1,2478.8,5.65167664]
[1747527500453,0.8065,2478.8,2478.7,16.6603]
[1747527500659,0.8065,2478.8,2478.7,0.6653]
[1747527500853,0.8065,2478.8,2478.6,0.80655]
[1747527500854,0.80654,2478.7,2478.6,0.80655]
[1747527501055,2.15754,2478.7,2478.6,0.80655]
[1747527501255,1.351,2478.7,2478.6,0.80655]
[1747527501561,1.351,2478.7,2478.6,1.92864276]
[1747527501864,0.80646,2479.0,2478.6,1.12209276]
[1747527502070,0.80646,2479.0,2478.9,0.80644]
[1747527502263,2.06266,2479.0,2478.9,0.80644]
[1747527502565,2.06266,2479.0,2478.7,2.11922]
[1747527502566,0.8065,2478.8,2478.7,2.11922]
[1747527502864,0.80649,2478.9,2478.8,0.80649]
[1747527503163,2.06267,2479.0,2478.9,0.80647]
[1747527503462,0.80648,2478.9,2478.8,0.80648]
[1747527504063,0.8065,2478.8,2478.7,2.11923]
[1747527505360,0.80656,2478.7,2478.6,8.80356]
[1747527506050,0.80656,2478.7,2478.6,0.80656]
[1747527506453,1.92943419,2479.0,2478.7,0.80653]
[1747527506454,0.80653,2478.8,2478.7,0.80653]
[1747527507063,0.80654,2478.8,2478.7,0.80654]
[1747527507458,1.92943419,2479.0,2478.6,1.2884]
[1747527507764,0.80652,2478.8,2478.7,0.80652]
[1747527508062,0.80652,2478.8,2478.7,0.80653]
[1747527508063,0.80653,2478.8,2478.7,0.80653]
[1747527508569,0.80654,2478.7,2478.6,2.09496]
[1747527508865,0.80654,2478.7,2478.6,0.80656]
[1747527509067,0.80657,2478.6,2478.5,1.47878]
[1747527509265,0.80656,2478.7,2478.6,0.80656]
[1747527509464,2.71386,2478.7,2478.6,0.80656]
[1747527510962,4.01433,2478.8,2478.7,0.80654]
[1747527511164,5.30433,2478.8,2478.7,0.80654]
[1747527512765,4.4978,2478.8,2478.5,1.9852]
[1747527512962,0.80656,2478.7,2478.6,0.80655]
[1747527513364,2.09656,2478.7,2478.6,0.80655]
[1747527514270,0.80657,2478.6,2478.5,1.9852]
[1747527514477,2.11407,2478.6,2478.5,0.6722]
[1747527514864,1.3075,2478.6,2478.2,1.20549757]
[1747527515064,0.80667,2478.3,2478.2,1.20549757]
[1747527515469,3.41297,2478.3,2478.2,1.20549757]
[1747527516172,1.9498,2478.3,2478.2,2.01219757]
[1747527516371,3.2078,2478.7,2478.2,2.01217757]
[1747527516670,0.80663,2478.4,2478.3,0.6375]
[1747527517573,0.80667,2478.3,2478.2,1.20549757]
[1747527517971,0.80667,2478.3,2478.1,2.73931]
[1747527518175,0.80667,2478.3,2478.2,1.2917]
[1747527518473,0.80667,2478.3,2478.2,2.0984]
[1747527518666,0.80661,2478.5,2478.2,1.2917]
[1747527518868,3.2078,2478.7,2478.2,1.2917]
[1747527519068,0.80659,2478.6,2478.5,0.80659]
[1747527519660,5.29065,2478.7,2478.6,0.80657]
[1747527519859,4.4841,2478.7,2478.6,0.80657]
[1747527520064,3.2078,2478.7,2478.6,0.80657]
[1747527523073,1.34061831,2478.9,2478.8,0.8065]
[1747527523375,1.34061831,2478.9,2478.8,5.47588914]
[1747527523771,1.34061831,2478.9,2478.8,6.76308914]
[1747527524976,1.34061831,2478.9,2478.8,5.47588914]
[1747527525181,1.34061831,2478.9,2478.8,21.46988914]
[1747527525976,1.34061831,2478.9,2478.8,22.58980253]
[1747527526678,1.34061831,2478.9,2478.8,6.59580253]
[1747527526876,1.34061831,2478.9,2478.8,1.92641339]
[1747527527177,1.34061831,2478.9,2478.8,0.8065]
[1747527527380,1.34061831,2478.9,2478.8,2.1602]
[1747527527679,2.72623,2479.1,2479.0,0.80644]
[1747527527977,0.80647,2478.9,2478.8,2.16019]
[1747527528170,0.80647,2478.9,2478.8,1.3537]
[1747527528481,0.8065,2478.8,2478.7,8.80452]
[1747527528673,2.0727,2478.8,2478.7,8.80452]
[1747527528977,2.0727,2478.8,2478.7,7.998]
[1747527529178,0.80654,2478.7,2478.6,0.80654]
[1747527529477,1.9876,2478.7,2478.4,12.41129757]
[1747527529779,1.3024,2478.7,2478.6,0.80657]
[1747527530376,0.80649,2478.9,2478.8,0.8065]
[1747527530572,1.3024,2478.9,2478.8,0.8065]
[1747527531977,2.10887,2478.9,2478.8,0.8065]
[1747527532196,0.80651,2478.8,2478.7,0.80651]
[1747527532400,0.80651,2478.8,2478.6,1.3466]
[1747527532401,0.80656,2478.7,2478.6,0.80656]
[1747527532589,1.49226,2478.7,2478.6,0.80656]
[1747527532898,0.80659,2478.6,2478.5,0.80659]
[1747527533092,2.10539,2478.6,2478.5,0.80659]
[1747527533396,1.2988,2478.6,2478.5,0.80659]
[1747527533792,1.2988,2478.6,2478.5,2.11319]
[1747527534992,0.80652,2478.8,2478.7,0.8065]
[1747527535598,2.12562,2478.8,2478.7,0.8065]
[1747527537601,0.80654,2478.7,2478.6,1.47175]
[1747527538397,1.3191,2478.8,2478.7,0.80654]
[1747527538591,1.3191,2478.8,2478.7,2.17864]
[1747527539491,0.67213089,2478.9,2478.8,0.8065]
[1747527539695,2.02383089,2478.9,2478.8,0.8065]
[1747527541005,0.8065,2478.8,2478.7,2.17863]
[1747527541197,2.1825,2478.8,2478.7,2.17863]
[1747527541398,1.376,2478.8,2478.7,2.17863]
[1747527542700,2.1825,2478.8,2478.7,2.17863]
[1747527544205,0.80654,2478.7,2478.6,0.6652]
[1747527544401,2.10244,2478.7,2478.6,0.6652]
[1747527545308,1.2959,2478.7,2478.6,1.47177]
[1747527546911,0.67213089,2478.9,2478.8,0.8065]
[1747527547502,2.05273089,2478.9,2478.8,0.8065]
[1747527548716,1.00819634,2479.1,2479.0,0.80644]
[1747527549009,1.00819634,2479.1,2479.0,21.28096367]
[1747527549410,1.00819634,2479.1,2479.0,21.96016367]
[1747527550411,1.00819634,2479.1,2479.0,23.0821541]
[1747527552311,1.00819634,2479.1,2479.0,26.1401541]
[1747527552701,1.00819634,2479.1,2479.0,26.1381541]
[1747527553210,1.00819634,2479.1,2479.0,23.0801541]
[1747527555208,1.00819634,2479.1,2479.0,26.1381541]
[1747527555611,1.00819634,2479.1,2479.0,27.3992541]
[1747527555807,1.00819634,2479.1,2479.0,32.3992541]
[1747527556004,3.2078,2479.4,2479.3,0.80634]
[1747527556409,3.2078,2479.4,2479.3,5.29298277]
[1747527557307,3.2078,2479.4,2479.3,5.61348175]
[1747527557604,1.9479,2479.7,2479.6,0.80624]
[1747527559613,1.00819634,2479.8,2479.7,0.80621]
[1747527559810,1.00819634,2479.8,2479.7,2.07431]
[1747527561714,3.2078,2479.9,2479.8,0.80618]
[1747527561916,0.80612,2480.0,2479.9,0.80615]
[1747527562412,0.80612,2480.0,2479.9,1.44805]
[1747527564819,2.14579,2480.1,2480.0,0.80611]
[1747527565119,0.80611,2480.0,2479.9,2.69673]
[1747527565319,2.06121,2480.0,2479.9,0.6419]
[1747527565723,0.80615,2479.9,2479.8,16.78516]
[1747527566018,2.10285,2479.9,2479.8,8.79716]
[1747527566521,1.2967,2479.9,2479.8,8.79716]
[1747527567312,1.9848,2479.9,2479.8,8.79716]
[1747527567817,2.79095,2479.9,2479.8,8.79716]
[1747527568420,1.2967,2479.9,2479.8,13.3435291]
[1747527571321,1.2967,2479.9,2479.8,13.3375291]
[1747527571525,0.80609,2480.1,2480.0,0.80611]
[1747527572025,2.09599,2480.1,2480.0,0.80611]
[1747527572221,1.2899,2480.1,2480.0,0.80611]
[1747527572521,2.09598,2480.1,2480.0,0.80611]
[1747527573723,0.80611,2480.0,2479.9,0.80612]
[1747527574023,2.09601,2480.0,2479.9,0.80612]
[1747527574415,1.2899,2480.0,2479.9,0.80612]
[1747527575223,3.2078,2480.2,2480.1,0.80608]
[1747527575519,1.3826,2480.4,2480.3,0.80602]
[1747527575910,1.3826,2480.4,2480.3,5.12806254]
[1747527576115,1.64049634,2480.5,2480.4,0.80598]